fUST/lending_fUST_20250723
["ID","MTS","AMOUNT","RATE_DAILY","PERIOD"]
[374126363,1753217446927,-460.0,0.00016811,2]
[374126365,1753217446936,-460.0,0.00016811,2]
[374126367,1753217446946,-460.0,0.00016811,2]
[374126369,1753217446955,-500.0,0.00016811,2]
[374126371,1753217446969,-460.0,0.00016811,2]
[374126373,1753217446983,-460.0,0.00016811,2]
[374126375,1753217446998,-460.0,0.00016811,2]
[374126377,1753217447012,-445.93920205,0.00016811,2]
[374126378,1753217447023,-460.0,0.00016811,2]
[374126380,1753217447040,-460.0,0.00016811,2]
[374126382,1753217447052,-460.0,0.00016811,2]
[374126383,1753217447061,-544.55,0.00016811,2]
[374126385,1753217447072,-460.0,0.00016811,2]
[374126386,1753217447082,-460.0,0.00016811,2]
[374126387,1753217447091,-460.0,0.00016811,2]
[374126389,1753217447101,-591.19796344,0.00016811,2]
[374126391,1753217447110,-460.0,0.00016811,2]
[374126392,1753217447120,-460.0,0.00016811,2]
[374126393,1753217447130,-460.0,0.00016811,2]
[374126394,1753217447140,-460.0,0.00016811,2]
[374126395,1753217447150,-460.0,0.00016811,2]
[374126396,1753217447159,-460.0,0.00016811,2]
[374126397,1753217447168,-883.15,0.00016811,2]
[374126398,1753217447177,-460.0,0.00016811,2]
[374126399,1753217447187,-460.0,0.00016811,2]
[374126400,1753217447196,-460.0,0.00016811,2]
[374126401,1753217447206,-252.22672606,0.00016811,2]
[374126402,1753217447215,-460.0,0.00016811,2]
[374126403,1753217447224,-546.3,0.00016811,2]
[374126404,1753217447233,-460.0,0.00016812,2]
[374126405,1753217447243,-566.73354706,0.00016812,2]
[374126406,1753217447252,-460.0,0.00016812,2]
[374126407,1753217447262,-463.15771446,0.00016812,2]
[374126408,1753217447271,-460.0,0.00016812,2]
[374126409,1753217447281,-460.0,0.00016812,2]
[374126410,1753217447290,-492.12082923,0.00016812,2]
[374126411,1753217447299,-460.0,0.00016812,2]
[374126412,1753217447309,-460.0,0.00016812,2]
[374126413,1753217447318,-460.0,0.00016812,2]
[374126414,1753217447327,-460.0,0.00016812,2]
[374126415,1753217447337,-460.0,0.00016812,2]
[374126416,1753217447347,-460.0,0.00016812,2]
[374126417,1753217447356,-460.0,0.00016812,2]
[374126418,1753217447366,-460.0,0.00016812,2]
[374126419,1753217447376,-460.0,0.00016812,2]
[374126420,1753217447386,-460.0,0.00016812,2]
[374126421,1753217447396,-588.19,0.00016812,2]
[374126422,1753217447405,-209.49075299,0.00016812,2]
[374126423,1753217447415,-234.96074193,0.00016812,2]
[374126424,1753217447424,-500.0,0.00016812,2]
[374126425,1753217447434,-500.0,0.00016812,2]
[374126426,1753217447443,-500.0,0.00016812,2]
[374126427,1753217447453,-168.80262565,0.00016812,2]
[374126428,1753217447464,-470.16003647,0.00016812,2]
[374126429,1753217447478,-460.0,0.00016812,2]
[374126430,1753217447488,-460.0,0.00016812,2]
[374126431,1753217447498,-460.0,0.00016812,2]
[374126432,1753217447508,-460.0,0.00016812,2]
[374126433,1753217447517,-755.36,0.00016812,2]
[374126434,1753217447527,-660.94,0.00016812,2]
[374126435,1753217447536,-460.0,0.00016812,2]
[374126436,1753217447546,-460.0,0.00016812,2]
[374126437,1753217447556,-460.0,0.00016812,2]
[374126438,1753217447565,-460.0,0.00016813,2]
[374126439,1753217447575,-460.0,0.00016813,2]
[374126440,1753217447585,-460.0,0.00016813,2]
[374126441,1753217447594,-460.0,0.00016813,2]
[374126442,1753217447604,-460.0,0.00016813,2]
[374126443,1753217447614,-320.79712595,0.00016813,2]
[374126444,1753217447624,-460.0,0.00016813,2]
[374126445,1753217447633,-460.0,0.00016813,2]
[374126446,1753217447643,-460.0,0.00016813,2]
[374126447,1753217447652,-460.0,0.00016813,2]
[374126448,1753217447661,-597.12011188,0.00016813,2]
[374126449,1753217447670,-212.89840467,0.00016813,2]
[374126450,1753217485425,370000.0,0.00016712,2]
[374126451,1753217528126,200.0,0.00026027,120]
[374126452,1753217535188,5000.0,0.00016764,2]
[374126453,1753217551408,4474.51541252,0.00016764,2]
[374126454,1753217558787,-230.65411979,0.00016764,2]
[374126455,1753217561447,-178.26838523,0.00016764,2]
[374126456,1753217563623,-116.56208246,0.00016764,2]
[374126457,1753217567333,5000.0,0.00016761,2]
[374126458,1753217583525,2752.66419389,0.00016761,2]
[374126459,1753217844743,5000.0,0.00016761,2]
[374126460,1753217922656,193.12187039,0.00016652,2]
[374126461,1753217966924,192.99343,0.00016305,2]
[374126462,1753217968053,214.93690946,0.00016305,2]
[374126463,1753218021953,4048.63897575,0.00016761,2]
[374126464,1753218141315,76505.12236903,0.00016711,2]
[374126465,1753218141341,287503.72087769,0.00016711,2]
[374126468,1753218421170,24900.0,0.00015808,2]
[374126469,1753218433765,291.108157,0.00015808,2]
[374126471,1753218555912,487.404892,0.00013699,2]
[374126509,1753218631779,-619.0,0.00016805,2]
[374126512,1753218631790,-265.0,0.00016805,2]
[374126514,1753218631800,-223.0,0.00016805,2]
[374126517,1753218631811,-77.25390935,0.00016805,2]
[374126521,1753218631835,-222.74609065,0.00016805,2]
[374126523,1753218631845,-75.62266742,0.00016805,2]
[374126525,1753218631858,-224.37733258,0.00016805,2]
[374126527,1753218631869,-300.0,0.00016805,2]
[374126529,1753218631879,-1177.16326241,0.00016805,2]
[374126606,1753218637920,-22.83673759,0.00016805,2]
[374126609,1753218637931,-460.0,0.00016806,2]
[374126611,1753218637944,-602.92,0.00016806,2]
[374126613,1753218637956,-178.26838523,0.00016806,2]
[374126615,1753218637966,-4472.61523439,0.00016807,5]
[374126617,1753218637976,-460.0,0.00016807,2]
[374126619,1753218637987,-913.02,0.00016807,2]
[374126642,1753218638161,-226.97,0.00016807,2]
[374126644,1753218638171,-460.0,0.00016807,2]
[374126646,1753218638180,-720.38,0.00016807,2]
[374126647,1753218638190,-460.0,0.00016807,2]
[374126648,1753218638200,-509.67,0.00016807,2]
[374126650,1753218638209,-460.0,0.00016807,2]
[374126652,1753218638218,-177.16,0.00016807,2]
[374126654,1753218638228,-460.0,0.00016807,2]
[374126655,1753218638237,-460.0,0.00016807,2]
[374126656,1753218638246,-1299.42,0.00016807,2]
[374126657,1753218638255,-460.0,0.00016807,2]
[374126658,1753218638264,-460.0,0.00016807,2]
[374126660,1753218638273,-500.0,0.00016807,2]
[374126662,1753218638282,-500.0,0.00016807,2]
[374126664,1753218638291,-156.3750634,0.00016807,2]
[374126665,1753218638301,-500.0,0.00016807,2]
[374126668,1753218638310,-500.0,0.00016807,2]
[374126670,1753218638324,-500.0,0.00016807,2]
[374126672,1753218638333,-500.0,0.00016807,2]
[374126674,1753218638343,-500.0,0.00016807,2]
[374126676,1753218638352,-500.0,0.00016807,2]
[374126678,1753218638362,-500.0,0.00016807,2]
[374126680,1753218638371,-500.0,0.00016807,2]
[374126681,1753218638380,-500.0,0.00016807,2]
[374126682,1753218638391,-343.30195142,0.00016807,2]
[374126683,1753218638401,-500.0,0.00016807,2]
[374126684,1753218638409,-500.0,0.00016807,2]
[374126685,1753218638418,-500.0,0.00016807,2]
[374126686,1753218638427,-500.0,0.00016807,2]
[374126687,1753218638436,-284.34619499,0.00016807,2]
[374126688,1753218638446,-197.69308136,0.00016807,2]
[374126689,1753218638456,-500.0,0.00016807,2]
[374126690,1753218638465,-584.37002079,0.00016807,2]
[374126691,1753218638474,-500.0,0.00016807,2]
[374126692,1753218638484,-500.0,0.00016807,2]
[374126693,1753218638493,-500.0,0.00016807,2]
[374126694,1753218638502,-500.0,0.00016807,2]
[374126695,1753218638512,-500.0,0.00016807,2]
[374126696,1753218638521,-500.0,0.00016807,2]
[374126697,1753218638530,-500.0,0.00016807,2]
[374126698,1753218638539,-529.82227636,0.00016807,2]
[374126699,1753218638548,-24909.69233827,0.00016807,2]
[374126700,1753218638557,-460.0,0.00016808,2]
[374126701,1753218638566,-419.69255579,0.00016808,2]
[374126702,1753218638576,-460.0,0.00016808,2]
[374126703,1753218638585,-460.0,0.00016808,2]
[374126704,1753218638595,-460.0,0.00016808,2]
[374126705,1753218638604,-460.0,0.00016808,2]
[374126706,1753218638614,-460.0,0.00016808,2]
[374126707,1753218638623,-460.0,0.00016808,2]
[374126708,1753218638632,-460.0,0.00016808,2]
[374126709,1753218638642,-460.0,0.00016808,2]
[374126710,1753218638652,-460.0,0.00016808,2]
[374126711,1753218638661,-692.83,0.00016808,2]
[374126712,1753218638670,-208.41805678,0.00016808,2]
[374126713,1753218638679,-460.0,0.00016808,2]
[374126714,1753218638688,-460.0,0.00016808,2]
[374126715,1753218638699,-484.57,0.00016808,2]
[374126716,1753218638708,-460.0,0.00016808,2]
[374126717,1753218638717,-460.0,0.00016808,2]
[374126718,1753218638727,-460.0,0.00016808,2]
[374126719,1753218638736,-460.0,0.00016808,2]
[374126720,1753218638748,-571.65,0.00016808,2]
[374126721,1753218638757,-460.0,0.00016808,2]
[374126722,1753218638767,-460.0,0.00016808,2]
[374126723,1753218638776,-460.0,0.00016808,2]
[374126724,1753218638785,-460.0,0.00016808,2]
[374126725,1753218638794,-460.0,0.00016808,2]
[374126726,1753218638804,-460.0,0.00016808,2]
[374126727,1753218638813,-460.0,0.00016808,2]
[374126728,1753218638821,-902.43,0.00016808,2]
[374126729,1753218638830,-460.0,0.00016808,2]
[374126730,1753218638840,-460.0,0.00016808,2]
[374126731,1753218638850,-460.0,0.00016808,2]
[374126732,1753218638859,-460.0,0.00016808,2]
[374126733,1753218638868,-460.0,0.00016808,2]
[374126734,1753218638877,-460.0,0.00016808,2]
[374126735,1753218638887,-460.0,0.00016808,2]
[374126736,1753218638896,-460.0,0.00016808,2]
[374126737,1753218638906,-460.0,0.00016808,2]
[374126738,1753218638915,-460.0,0.00016808,2]
[374126739,1753218638924,-460.0,0.00016809,2]
[374126740,1753218638933,-460.0,0.00016809,2]
[374126741,1753218638942,-460.0,0.00016809,2]
[374126742,1753218638951,-460.0,0.00016809,2]
[374126743,1753218638960,-460.0,0.00016809,2]
[374126744,1753218638970,-460.0,0.00016809,2]
[374126745,1753218638979,-460.0,0.00016809,2]
[374126746,1753218638988,-460.0,0.00016809,2]
[374126747,1753218638997,-460.0,0.00016809,2]
[374126748,1753218639006,-460.0,0.00016809,2]
[374126749,1753218639015,-500.0,0.00016809,2]
[374126750,1753218639024,-460.0,0.00016809,2]
[374126751,1753218639034,-460.0,0.00016809,2]
[374126752,1753218639043,-460.0,0.00016809,2]
[374126753,1753218639052,-460.0,0.00016809,2]
[374126754,1753218639061,-460.0,0.00016809,2]
[374126755,1753218639070,-460.0,0.00016809,2]
[374126756,1753218639080,-460.0,0.00016809,2]
[374126757,1753218639089,-460.0,0.00016809,2]
[374126758,1753218639098,-460.0,0.00016809,2]
[374126759,1753218639108,-460.0,0.00016809,2]
[374126760,1753218639117,-460.0,0.00016809,2]
[374126761,1753218639126,-177.81,0.00016809,2]
[374126762,1753218639135,-460.0,0.00016809,2]
[374126763,1753218639145,-460.0,0.00016809,2]
[374126764,1753218639154,-460.0,0.00016809,2]
[374126765,1753218639163,-460.0,0.00016809,2]
[374126766,1753218639173,-420.50965263,0.00016809,2]
[374126767,1753218639182,-524.19,0.00016809,2]
[374126768,1753218639191,-460.0,0.00016809,2]
[374126769,1753218639200,-460.0,0.00016809,2]
[374126770,1753218639209,-247.10159533,0.00016809,2]
[374126771,1753218639218,-1029.54,0.00016809,2]
[374126772,1753218639228,-460.0,0.0001681,2]
[374126773,1753218639237,-460.0,0.0001681,2]
[374126774,1753218639246,-460.0,0.0001681,2]
[374126775,1753218639255,-460.0,0.0001681,2]
[374126776,1753218639264,-460.0,0.0001681,2]
[374126777,1753218639273,-500.0,0.0001681,2]
[374126778,1753218639283,-383.96247612,0.0001681,2]
[374126779,1753218639292,-460.0,0.0001681,2]
[374126780,1753218639302,-460.0,0.0001681,2]
[374126781,1753218639312,-460.0,0.0001681,2]
[374126782,1753218639325,-460.0,0.0001681,2]
[374126783,1753218639335,-303.26945783,0.0001681,2]
[374126784,1753218639345,-460.0,0.0001681,2]
[374126785,1753218639355,-460.0,0.00016811,2]
[374126786,1753218639365,-460.0,0.00016811,2]
[374126787,1753218639375,-460.0,0.00016811,2]
[374126790,1753218639385,-460.0,0.00016811,2]
[374126792,1753218639397,-606.45,0.00016811,2]
[374126793,1753218639407,-460.0,0.00016811,2]
[374126794,1753218639416,-460.0,0.00016811,2]
[374126795,1753218639425,-460.0,0.00016811,2]
[374126796,1753218639434,-460.0,0.00016811,2]
[374126797,1753218639443,-460.0,0.00016811,2]
[374126798,1753218639453,-460.0,0.00016811,2]
[374126799,1753218639462,-700.6,0.00016811,2]
[374126800,1753218639471,-460.0,0.00016811,2]
[374126801,1753218639480,-460.0,0.00016811,2]
[374126802,1753218639489,-784.69,0.00016811,2]
[374126804,1753218639499,-460.0,0.00016811,2]
[374126806,1753218639508,-460.0,0.00016811,2]
[374126808,1753218639517,-500.0,0.00016811,2]
[374126810,1753218639527,-1091.41,0.00016811,2]
[374126812,1753218639536,-460.0,0.00016811,2]
[374126814,1753218639545,-460.0,0.00016811,2]
[374126816,1753218639554,-1225.86,0.00016811,2]
[374126818,1753218639563,-460.0,0.00016811,2]
[374126820,1753218639572,-460.0,0.00016811,2]
[374126822,1753218639582,-460.0,0.00016811,2]
[374126824,1753218639591,-838.43,0.00016811,2]
[374126826,1753218639600,-460.0,0.00016811,2]
[374126828,1753218639610,-539.86,0.00016812,2]
[374126830,1753218639619,-4348.57643685,0.00016813,2]
[374126832,1753218639628,-500.0,0.00016813,2]
[374126834,1753218639637,-500.0,0.00016813,2]
[374126836,1753218639647,-255.0,0.00016813,2]
[374126838,1753218639656,-500.0,0.00016873,2]
[374126840,1753218639665,-602.92,0.0001708,2]
[374126841,1753218639675,-460.0,0.00017081,2]
[374126842,1753218639684,-913.02,0.00017081,2]
[374126843,1753218639694,-226.51,0.00017081,2]
[374126844,1753218639706,-720.38,0.00017081,2]
[374126845,1753218639715,-460.0,0.00017081,2]
[374126846,1753218639725,-509.67,0.00017081,2]
[374126847,1753218639734,-535.25,0.00017081,2]
[374126848,1753218639743,-460.0,0.00017081,2]
[374126849,1753218639753,-460.0,0.00017081,2]
[374126851,1753218639762,-1299.42,0.00017081,2]
[374126853,1753218639771,-343.59,0.00017081,2]
[374126854,1753218639780,-460.0,0.00017081,2]
[374126855,1753218639789,-460.0,0.00017082,2]
[374126856,1753218639798,-460.0,0.00017082,2]
[374126857,1753218639807,-460.0,0.00017082,2]
[374126859,1753218639816,-460.0,0.00017082,2]
[374126861,1753218639826,-692.83,0.00017082,2]
[374126862,1753218639836,-460.0,0.00017082,2]
[374126864,1753218639845,-460.0,0.00017082,2]
[374126866,1753218639855,-460.0,0.00017082,2]
[374126868,1753218639865,-460.0,0.00017082,2]
[374126870,1753218639875,-460.0,0.00017082,2]
[374126873,1753218639884,-460.0,0.00017082,2]
[374126874,1753218639893,-460.0,0.00017082,2]
[374126876,1753218639903,-460.0,0.00017082,2]
[374126878,1753218639911,-902.43,0.00017082,2]
[374126880,1753218639920,-460.0,0.00017082,2]
[374126882,1753218639930,-460.0,0.00017082,2]
[374126884,1753218639939,-460.0,0.00017082,2]
[374126886,1753218639949,-460.0,0.00017082,2]
[374126888,1753218639958,-460.0,0.00017082,2]
[374126890,1753218639968,-460.0,0.00017083,2]
[374126892,1753218639977,-460.0,0.00017083,2]
[374126894,1753218639986,-460.0,0.00017083,2]
[374126896,1753218639995,-460.0,0.00017083,2]
[374126898,1753218640004,-460.0,0.00017083,2]
[374126901,1753218640013,-460.0,0.00017083,2]
[374126903,1753218640022,-460.0,0.00017083,2]
[374126905,1753218640031,-460.0,0.00017083,2]
[374126907,1753218640041,-460.0,0.00017083,2]
[374126909,1753218640050,-285.8,0.00017083,2]
[374126911,1753218640059,-460.0,0.00017083,2]
[374126912,1753218640069,-1029.54,0.00017083,2]
[374126913,1753218640078,-460.0,0.00017084,2]
[374126914,1753218640087,-460.0,0.00017084,2]
[374126915,1753218640097,-310.20690002,0.00017084,2]
[374126916,1753218640107,-299.12,0.00017084,2]
[374126917,1753218640116,-460.0,0.00017085,2]
[374126918,1753218640125,-606.45,0.00017085,2]
[374126919,1753218640134,-460.0,0.00017085,2]
[374126920,1753218640143,-700.6,0.00017085,2]
[374126921,1753218640153,-784.69,0.00017085,2]
[374126922,1753218640162,-460.0,0.00017085,2]
[374126923,1753218640171,-1091.41,0.00017085,2]
[374126924,1753218640181,-1225.86,0.00017085,2]
[374126925,1753218640190,-460.0,0.00017085,2]
[374126926,1753218640200,-838.43,0.00017085,2]
[374126927,1753218640210,-500.0,0.00017087,2]
[374126928,1753218640219,-500.0,0.00017087,2]
[374126929,1753218640228,-686.44,0.00017347,3]
[374126930,1753218640237,-343.22,0.00017347,3]
[374126931,1753218640246,-171.61,0.00017347,3]
[374126932,1753218640255,-514.85,0.00017347,3]
[374126933,1753218640264,-602.92,0.00017354,2]
[374126934,1753218640273,-913.02,0.00017355,2]
[374126935,1753218640283,-720.38,0.00017355,2]
[374126936,1753218640292,-460.0,0.00017355,2]
[374126937,1753218640301,-509.67,0.00017355,2]
[374126938,1753218640311,-460.0,0.00017355,2]
[374126939,1753218640324,-460.0,0.00017355,2]
[374126940,1753218640333,-1299.42,0.00017355,2]
[374126941,1753218640343,-460.0,0.00017355,2]
[374126942,1753218640352,-460.0,0.00017356,2]
[374126943,1753218640363,-692.83,0.00017356,2]
[374126944,1753218640373,-460.0,0.00017356,2]
[374126945,1753218640382,-460.0,0.00017356,2]
[374126946,1753218640396,-460.0,0.00017356,2]
[374126947,1753218640406,-460.0,0.00017356,2]
[374126948,1753218640415,-460.0,0.00017356,2]
[374126949,1753218640424,-460.0,0.00017356,2]
[374126950,1753218640434,-460.0,0.00017356,2]
[374126951,1753218640443,-460.0,0.00017356,2]
[374126952,1753218640452,-902.43,0.00017356,2]
[374126953,1753218640462,-460.0,0.00017356,2]
[374126954,1753218640471,-460.0,0.00017356,2]
[374126955,1753218640480,-460.0,0.00017356,2]
[374126956,1753218640489,-460.0,0.00017356,2]
[374126957,1753218640499,-460.0,0.00017356,2]
[374126958,1753218640508,-460.0,0.00017357,2]
[374126959,1753218640517,-460.0,0.00017357,2]
[374126960,1753218640527,-487.03756914,0.00017357,2]
[374126961,1753218640537,-460.0,0.00017357,2]
[374126962,1753218640546,-460.0,0.00017357,2]
[374126963,1753218640554,-460.0,0.00017357,2]
[374126964,1753218640563,-460.0,0.00017357,2]
[374126965,1753218640573,-460.0,0.00017357,2]
[374126966,1753218640583,-1029.54,0.00017357,2]
[374126967,1753218640592,-235.98984613,0.00017358,2]
[374126968,1753218640602,-606.45,0.00017359,2]
[374126969,1753218640611,-700.6,0.00017359,2]
[374126970,1753218640621,-784.69,0.00017359,2]
[374126971,1753218640629,-460.0,0.00017359,2]
[374126972,1753218640639,-1091.41,0.00017359,2]
[374126973,1753218640648,-1225.86,0.00017359,2]
[374126974,1753218640658,-838.43,0.00017359,2]
[374126975,1753218640668,-500.0,0.00017361,2]
[374126976,1753218640678,-500.0,0.00017361,2]
[374126977,1753218640687,-1000.0,0.00017421,2]
[374126978,1753218640696,-602.92,0.00017628,2]
[374126979,1753218640706,-913.02,0.00017629,2]
[374126980,1753218640715,-720.38,0.00017629,2]
[374126981,1753218640724,-460.0,0.00017629,2]
[374126982,1753218640733,-509.67,0.00017629,2]
[374126983,1753218640742,-460.0,0.00017629,2]
[374126984,1753218640751,-460.0,0.00017629,2]
[374126985,1753218640760,-1299.42,0.00017629,2]
[374126986,1753218640770,-460.0,0.00017629,2]
[374126987,1753218640779,-460.0,0.0001763,2]
[374126988,1753218640788,-692.83,0.0001763,2]
[374126989,1753218640797,-460.0,0.0001763,2]
[374126990,1753218640806,-460.0,0.0001763,2]
[374126991,1753218640815,-460.0,0.0001763,2]
[374126992,1753218640825,-460.0,0.0001763,2]
[374126993,1753218640834,-460.0,0.0001763,2]
[374126994,1753218640843,-460.0,0.0001763,2]
[374126995,1753218640852,-460.0,0.0001763,2]
[374126996,1753218640861,-460.0,0.0001763,2]
[374126997,1753218640871,-902.43,0.0001763,2]
[374126998,1753218640880,-460.0,0.0001763,2]
[374126999,1753218640889,-460.0,0.0001763,2]
[374127000,1753218640898,-460.0,0.0001763,2]
[374127001,1753218640907,-460.0,0.0001763,2]
[374127002,1753218640916,-582.22,0.0001763,2]
[374127003,1753218640925,-304.01,0.00017631,2]
[374127004,1753218640934,-460.0,0.00017631,2]
[374127005,1753218640944,-460.0,0.00017631,2]
[374127006,1753218640953,-460.0,0.00017631,2]
[374127007,1753218640962,-460.0,0.00017631,2]
[374127008,1753218640971,-460.0,0.00017631,2]
[374127009,1753218640980,-460.0,0.00017631,2]
[374127010,1753218640989,-1029.54,0.00017631,2]
[374127011,1753218640998,-606.45,0.00017633,2]
[374127012,1753218641007,-700.6,0.00017633,2]
[374127013,1753218641016,-784.69,0.00017633,2]
[374127014,1753218641024,-460.0,0.00017633,2]
[374127015,1753218641033,-1091.41,0.00017633,2]
[374127016,1753218641043,-1225.86,0.00017633,2]
[374127017,1753218641051,-838.43,0.00017633,2]
[374127018,1753218641060,-500.0,0.00017635,2]
[374127019,1753218641070,-500.0,0.00017635,2]
[374127020,1753218641079,-602.92,0.00017902,2]
[374127021,1753218641088,-913.02,0.00017903,2]
[374127022,1753218641097,-720.38,0.00017903,2]
[374127023,1753218641106,-460.0,0.00017903,2]
[374127024,1753218641115,-509.67,0.00017903,2]
[374127025,1753218641124,-460.0,0.00017903,2]
[374127026,1753218641233,-387.69772743,0.00017903,2]
[374127027,1753218641243,-1299.42,0.00017903,2]
[374127028,1753218641252,-460.0,0.00017903,2]
[374127029,1753218641262,-460.0,0.00017904,2]
[374127030,1753218641272,-692.83,0.00017904,2]
[374127031,1753218641281,-460.0,0.00017904,2]
[374127032,1753218641291,-460.0,0.00017904,2]
[374127033,1753218641301,-460.0,0.00017904,2]
[374127034,1753218641310,-460.0,0.00017904,2]
[374127035,1753218641324,-460.0,0.00017904,2]
[374127036,1753218641333,-460.0,0.00017904,2]
[374127037,1753218641342,-460.0,0.00017904,2]
[374127038,1753218641352,-460.0,0.00017904,2]
[374127039,1753218641363,-902.43,0.00017904,2]
[374127040,1753218641372,-460.0,0.00017904,2]
[374127041,1753218641382,-460.0,0.00017904,2]
[374127042,1753218641391,-460.0,0.00017904,2]
[374127043,1753218641402,-460.0,0.00017904,2]
[374127044,1753218641411,-460.0,0.00017905,2]
[374127045,1753218641420,-460.0,0.00017905,2]
[374127046,1753218641429,-460.0,0.00017905,2]
[374127047,1753218641438,-460.0,0.00017905,2]
[374127048,1753218641448,-460.0,0.00017905,2]
[374127049,1753218641457,-1029.54,0.00017905,2]
[374127050,1753218641467,-606.45,0.00017907,2]
[374127051,1753218641478,-700.6,0.00017907,2]
[374127052,1753218641487,-784.69,0.00017907,2]
[374127053,1753218641496,-460.0,0.00017907,2]
[374127054,1753218641506,-1091.41,0.00017907,2]
[374127055,1753218641515,-1225.86,0.00017907,2]
[374127056,1753218641524,-838.43,0.00017907,2]
[374127057,1753218641534,-500.0,0.00017909,2]
[374127058,1753218641544,-500.0,0.00017909,2]
[374127059,1753218641556,-1500.0,0.00017968,2]
[374127060,1753218641566,-17676.33668553,0.00018081,2]
[374127061,1753218641576,-602.92,0.00018176,2]
[374127062,1753218641585,-913.02,0.00018177,2]
[374127063,1753218641594,-720.38,0.00018177,2]
[374127064,1753218641603,-460.0,0.00018177,2]
[374127065,1753218641612,-509.67,0.00018177,2]
[374127066,1753218641622,-460.0,0.00018177,2]
[374127067,1753218641631,-1299.42,0.00018177,2]
[374127068,1753218641640,-460.0,0.00018177,2]
[374127069,1753218641649,-460.0,0.00018178,2]
[374127070,1753218641659,-692.83,0.00018178,2]
[374127071,1753218641668,-460.0,0.00018178,2]
[374127072,1753218641677,-460.0,0.00018178,2]
[374127073,1753218641686,-460.0,0.00018178,2]
[374127074,1753218641697,-460.0,0.00018178,2]
[374127075,1753218641706,-460.0,0.00018178,2]
[374127076,1753218641716,-460.0,0.00018178,2]
[374127077,1753218641725,-570.48,0.00018178,2]
[374127078,1753218641734,-902.43,0.00018178,2]
[374127079,1753218641743,-460.0,0.00018178,2]
[374127080,1753218641753,-460.0,0.00018178,2]
[374127081,1753218641762,-460.0,0.00018178,2]
[374127082,1753218641771,-460.0,0.00018178,2]
[374127083,1753218641780,-460.0,0.00018179,2]
[374127084,1753218641789,-460.0,0.00018179,2]
[374127085,1753218641799,-460.0,0.00018179,2]
[374127086,1753218641808,-460.0,0.00018179,2]
[374127087,1753218641817,-460.0,0.00018179,2]
[374127088,1753218641827,-606.45,0.00018181,2]
[374127089,1753218641836,-700.6,0.00018181,2]
[374127090,1753218641847,-784.69,0.00018181,2]
[374127091,1753218641858,-460.0,0.00018181,2]
[374127092,1753218641867,-1091.41,0.00018181,2]
[374127093,1753218641876,-1225.86,0.00018181,2]
[374127094,1753218641885,-838.43,0.00018181,2]
[374127095,1753218641894,-500.0,0.00018183,2]
[374127096,1753218641905,-500.0,0.00018183,2]
[374127097,1753218641916,-300.0,0.00018358,2]
[374127098,1753218641926,-420.0,0.00018358,2]